Cogmind - Beta 13 @@@ ROGUE MODE // 2024.04.27 @ 17:08:56 Player: e.v.o Result: Self-destructed Performance ------------- Evolutions (1) 500 Regions Visited (2) 400 Robots Destroyed (29) 145 Value Destroyed (591) 591 Prototype IDs (0) 0 Alien Tech Used (0) 0 Bonus (0) 0 TOTAL SCORE: 1636 Bonus ------- None Cogmind --------- Core Integrity 87/400 Matter 251/300 Energy 250/250 System Corruption 0% Temperature Cool (0) Movement Walking (260) Ox2 Location -9/Materials Parts ------- > --- POWER (1) -------- Ion Engine > --- PROPULSION (2) --- Light Treads Improved Aluminum Leg > --- UTILITY (4) ------ Large Storage Unit Visual Processing Unit Signal Interpreter Hacking Suite > --- WEAPON (2) ------- Light Assault Rifle Light Assault Rifle > --- INVENTORY (15) --- Light Nuclear Core Aluminum Leg Improved Aluminum Leg Improved Heat Sink Structural Scanner Improved Terrain Scanner Seismic Detector Targeting Computer Peak State ------------ > --- POWER ------------ Ion Engine > --- PROPULSION ------- Light Treads Improved Aluminum Leg > --- UTILITY ---------- Large Storage Unit Visual Processing Unit Signal Interpreter Hacking Suite > --- WEAPON ----------- Light Assault Rifle Light Assault Rifle > --- INVENTORY -------- Light Nuclear Core Aluminum Leg Improved Aluminum Leg Improved Heat Sink Structural Scanner Improved Terrain Scanner Seismic Detector Targeting Computer [Rating: 14] Favorites ----------- Power Ion Engine Engine Ion Engine Propulsion Light Treads Treads Light Treads Leg Improved Aluminum Leg Utility Large Storage Unit Device Seismic Detector Storage Large Storage Unit Processor Signal Interpreter Hackware Hacking Suite Weapon Light Assault Rifle Energy Gun Medium Laser Ballistic Gun Light Assault Rifle Launcher Grenade Launcher Build | -11 -10 -9 ------- Run | Yrd Mat Mat Slots Evolved 2 | . . 2 Power . | . . . Propulsion . | . . . Utility 2 | . . 2 Weapon . | . . . Parts Attached 26 | 9 6 11 Power 3 | 1 1 1 Engine 3 | 1 1 1 Core . | . . . Reactor . | . . . Propulsion 6 | 2 1 3 Treads 5 | 2 1 2 Leg 1 | . . 1 Wheel . | . . . Hover . | . . . Flight . | . . . Utility 9 | 4 1 4 Device 3 | 2 . 1 Storage 3 | 2 1 . Processor 2 | . . 2 Hackware 1 | . . 1 Protection . | . . . Artifact . | . . . Weapon 8 | 2 3 3 Energy Gun 1 | 1 . . Energy Cannon . | . . . Ballistic Gun 6 | 1 2 3 Ballistic Cannon . | . . . Launcher 1 | . 1 . Special Weapon . | . . . Impact Weapon . | . . . Slashing Weapon . | . . . Piercing Weapon . | . . . Special Melee Weapon . | . . . Unidentified Prototypes . | . . . Parts Lost 3 | . . 3 Power 1 | . . 1 Propulsion 1 | . . 1 Utility 1 | . . 1 Weapon . | . . . Highest Loss Streak 1 | . . 1 To Critical Strikes . | . . . Average Slot Usage (%) 98 | . 100 94 Engine 12 | . 14 11 Treads 25 | . 28 21 Device 11 | . 14 6 Storage 12 | . 14 11 Processor 5 | . . 15 Hackware 3 | . . 11 Energy Gun 2 | . 3 . Ballistic Gun 20 | . 21 17 Launcher 1 | . 2 . Naked Turns . | . . . Heaviest Build 31 | 14 31 29 Greatest Support 40 | 40 40 40 Greatest Overweight (x) 2 | . . 2 Average Overweight (x) . | . . . Largest Inventory Capacity 15 | 8 15 15 Average Capacity 14 | 7 14 15 Most Carried 14 | 1 12 14 Average Carried 7 | . 5 11 Final Capacity 15 | 8 15 15 Final Carried 12 | 1 12 8 Class Distribution -------------------- 67% | Mutant 32% | Scavenger-Mutant Dominant Class ---------------- Mutant | -10/Materials Scavenger-Mutant | -9/Materials Resources | -11 -10 -9 ----------- Run | Yrd Mat Mat Matter Collected 624 | 300 166 158 Remotely . | . . . Salvage Created 809 | 131 364 314 Parts 65 | 8 24 33 Haulers Intercepted 2 | . 2 . Recyclers Shooed . | . . . Parts Field Recycled . | . . . Retrieved Matter . | . . . Parts Self-Destructed . | . . . Prevented . | . . . Kills | -11 -10 -9 ------- Run | Yrd Mat Mat Combat Hostiles Destroyed 20 | . 11 9 Melee 1 | . . 1 Guns 13 | . 5 8 AOE 6 | . 6 . Classes Destroyed 10 | 2 6 2 Builder 1 | . 1 . Tunneler 2 | 2 . . Hauler 2 | . 2 . Recycler 1 | 1 . . Operator 1 | . 1 . Watcher 2 | . 1 1 Swarmer 9 | . 6 3 Grunt 9 | . 5 4 Duelist 1 | . . 1 Sentry 1 | . . 1 Best Kill Streak 6 | 2 6 3 Combat Bots Only 5 | . 5 3 Max Kills in Single Turn 3 | 1 3 1 Gunslinging . | . . . Exploded 2 | . 2 . Melee 1 | . . 1 Uniques/NPCs Destroyed . | . . . Combat | -11 -10 -9 -------- Run | Yrd Mat Mat Hostile Shots Fired 156 | . 46 110 Missed 47 | . 17 30 Damage Taken 1369 | . 272 1097 Core 364 | . 51 313 Absorbed by Shields . | . . . Core Remaining (%) 89 | 100 79 . Volleys Fired 144 | 10 58 76 Largest 2 | 2 2 2 Hottest 80 | 70 80 40 Shots Fired 216 | 20 89 107 Gun 210 | 20 83 107 Cannon . | . . . Launcher 6 | . 6 . Special . | . . . Kinetic 167 | 10 50 107 Thermal 43 | 10 33 . Explosive 6 | . 6 . Electromagnetic . | . . . Robot Hit Streak 8 | 7 6 8 Robot Miss Streak 4 | 1 4 4 Penetration Max . | . . . Secondary Targets 2 | . . 2 Max Gunslinging Chain 1 | . . 1 Shots Hit Robots 131 | 15 43 73 Core Hits 62 | 5 24 33 Critical Kills 1 | . . 1 Critical Parts Destroyed . | . . . Critical Strikes 5 | 1 3 1 Burn 4 | 1 3 . Destroy 1 | . . 1 Melee Attacks . | . . . Impact . | . . . Slashing . | . . . Piercing . | . . . Sneak Attacks . | . . . Combat Hostiles . | . . . Follow-up Attacks . | . . . Damage Inflicted 1640 | 138 838 664 Guns 1246 | 138 453 655 Cannons . | . . . Explosions 381 | . 381 . Melee . | . . . Ramming 13 | . 4 9 Kinetic 931 | 63 213 655 Thermal 315 | 75 240 . Explosive 381 | . 381 . Electromagnetic . | . . . Impact . | . . . Slashing . | . . . Piercing . | . . . Highest Corruption . | . . . Average Corruption . | . . . Corruption Purged . | . . . Corruption Blocked . | . . . Overload Shots . | . . . Overflow Damage . | . . . Projectiles . | . . . Explosions . | . . . Melee . | . . . Knockbacks . | . . . Impact . | . . . Kinetic . | . . . Secondary . | . . . Self-Inflicted Damage . | . . . Shots . | . . . Rammed 6 | . 1 5 Targets Rammed 6 | . 1 5 Kicked . | . . . Crushed . | . . . Highest Temperature 148 | 100 148 24 Average Temperature 40 | 42 49 5 Received Heat Transfer 414 | . 66 348 Siege Activations . | . . . Robots Corrupted . | . . . Combat Hostiles . | . . . Parts Fried . | . . . Impact Corruptions . | . . . Robots Melted 1 | . 1 . Combat Hostiles . | . . . Parts Melted 2 | . 2 . Heat Transferred 1221 | 296 925 . Parts Sabotaged . | . . . Parts Stolen . | . . . Parts Stripped . | . . . Power Chain Reactions . | . . . Alert | -11 -10 -9 ------- Run | Yrd Mat Mat Peak Influence 294 | 15 294 120 Initial 12 | . 9 12 Average 84 | 6 120 39 Maximum Alert Level 1 | . 1 . Low Security (%) 85 | 100 76 100 Level 1 14 | . 23 . Level 2 . | . . . Level 3 . | . . . Level 4 . | . . . Level 5 . | . . . High Security . | . . . Max Security . | . . . Squads Dispatched 2 | . 2 . Investigation 1 | . 1 . Extermination . | . . . Reinforcement 1 | . 1 . Assault . | . . . Garrison . | . . . Intercept . | . . . Searches Triggered . | . . . Construction Impeded . | . . . Haulers Reinforced . | . . . Active Scanning Responses . | . . . Cargo Convoy Interrupts . | . . . Stealth | -11 -10 -9 --------- Run | Yrd Mat Mat Distress Signals 3 | . 2 1 Communications Jammed . | . . . Distress Signals . | . . . Times Spotted 38 | . 22 16 Peak Tracking Total 5 | . 3 5 Tactical Retreats . | . . . Traps | -11 -10 -9 ------- Run | Yrd Mat Mat Traps Triggered 1 | . 1 . Indirectly . | . . . Trap Hack Attempts . | . . . Triggered . | . . . Disarmed . | . . . Reprogrammed . | . . . Reused . | . . . Traps Extracted . | . . . Installed . | . . . Triggered . | . . . Machines | -11 -10 -9 ---------- Run | Yrd Mat Mat Machines Disabled . | . . . Max in Single Turn . | . . . Machines Repaired . | . . . Machines Dismantled . | . . . Machines Sabotaged . | . . . Overloaded Fab Kills . | . . . Hacking | -11 -10 -9 --------- Run | Yrd Mat Mat Machines Accessed 1 | . 1 . Terminals 1 | . 1 . Fabricators . | . . . Repair Stations . | . . . Recycling Units . | . . . Scanalyzers . | . . . Garrison Access . | . . . Total Hacks 4 | . 4 . Successful 2 | . 2 . Failed 2 | . 2 . Catastrophic . | . . . Database Lockouts . | . . . Manual . | . . . Terminals 4 | . 4 . Fabricators . | . . . Repair Stations . | . . . Recycling Units . | . . . Scanalyzers . | . . . Garrison Access . | . . . Terminal Hacks 2 | . 2 . Branch Access Points 1 | . 1 . Hauler Manifests 1 | . 1 . Fabricator Hacks . | . . . Repair Station Hacks . | . . . Recycling Unit Hacks . | . . . Scanalyzer . | . . . Garrison Access Hacks . | . . . Unauthorized Hacks . | . . . Terminals . | . . . Fabricators . | . . . Repair Stations . | . . . Recycling Units . | . . . Scanalyzers . | . . . Garrison Access . | . . . Data Cores Recovered . | . . . Used . | . . . Hacking Detections 1 | . 1 . Full Trace Events . | . . . Feedback Events . | . . . Feedback Blocked . | . . . Robot Schematics Acquired . | . . . Robots Built . | . . . Authchips . | . . . Time . | . . . Total Robot Build Rating . | . . . Part Schematics Acquired . | . . . Parts Built . | . . . Authchips . | . . . Time . | . . . Total Part Build Rating . | . . . Parts Repaired . | . . . Time . | . . . Parts Recycled . | . . . Recycled Matter . | . . . Retrieved Matter . | . . . Retrieved Components . | . . . Parts Scanalyzed . | . . . Part Schematics Acquired . | . . . Parts Damaged . | . . . Bothacking | -11 -10 -9 ------------ Run | Yrd Mat Mat Used RIF Installer . | . . . Robots Hacked . | . . . Non-combat . | . . . Combat . | . . . Robot Hacks Applied . | . . . Relay Couplers Released . | . . . Fabnet Peak Effective % . | . . . Robots Rewired . | . . . Allies Hacked . | . . . Hacks Repelled . | . . . Allies | -11 -10 -9 -------- Run | Yrd Mat Mat Total Allies . | . . . Largest Group . | . . . Highest-Rated Group . | . . . Highest-Rated Ally . | . . . Total Orders . | . . . Ally Attacks . | . . . Total Damage . | . . . Kills . | . . . Allies Corrupted . | . . . Allies Melted . | . . . Intel | -11 -10 -9 ------- Run | Yrd Mat Mat Robot Analysis Total . | . . . Derelict Logs Recovered . | . . . Drone Launches . | . . . Drone Recoveries . | . . . Exploration | -11 -10 -9 ------------- Run | Yrd Mat Mat Turns Passed 1658 | 139 971 548 Spaces Moved 777 | 63 501 213 Core 3 | 3 . . Treads 773 | 60 501 212 Legs 1 | . . 1 Wheels . | . . . Hover . | . . . Flight . | . . . Fastest Speed 50 | 50 160 160 Average Speed 159 | 154 160 160 Slowest Speed 260 | 160 160 260 Overloaded Moves . | . . . Propulsion Burnouts . | . . . Robots Hopped . | . . . Cave-ins Triggered . | . . . Exploration Rate (%) 28 | 5 68 13 Regions Visited 2 Branch Regions . Pre-discovered Areas . | . . . Known Exits Taken . | . . . Unknown Exits Taken 2 | 1 1 . Scrap Searched . | . . . Spaces Dug . | . . . Terrain Destroyed 32 | . 32 . Melee . | . . . Projectile . | . . . AOE 32 | . 32 . Terrain Rammed . | . . . Walls Destroyed . | . . . Machines Disabled . | . . . Actions | -11 -10 -9 --------- Run | Yrd Mat Mat Total 1001 | 83 590 328 Wait 23 | . 9 14 Move 775 | 62 500 213 Hop . | . . . Pick Up 18 | 1 12 5 Fast Attach 8 | 8 . . Attach 6 | . . 6 Detach . | . . . Swap 12 | 1 6 5 Drop 9 | 1 4 4 Fire 144 | 10 58 76 Melee . | . . . Ram . | . . . Kick . | . . . Crush 6 | . 1 5 Escape Stasis . | . . . Rewire . | . . . Trap . | . . . Miscellaneous . | . . . Route ------- -11/Scrapyard -10/Materials (discovered 4 exits: [*Mat x2] / Min x2) -9/Materials History --------- Turn | Location | Event 11 | -11/Scrapyard | Discovered new exit (range 16) 140 | -11/Scrapyard | Entered Materials 238 | -10/Materials | Discovered new exit (range 9) 302 | -10/Materials | Build established: Mutant 647 | -10/Materials | Discovered new exit (range 15) 1011 | -10/Materials | Identified exit to Mines 1111 | -10/Materials | Entered another Materials area 1111 | -9/Materials | Evolved 2 slots: Utility x2 1415 | -9/Materials | Build established: Scavenger-Mutant 1615 | -9/Materials | Core integrity fell below 50% 1659 | -9/Materials | Self-destructed Last Messages --------------- 01606_ R-06 Scavenger collects Flight Unit. 01614_ S-10 Pest destroyed. 01614_ Switching to secondary target: Y-45 Defender. 01615_ M-13 Machinist repairs R-06 Scavenger. 01618_ Lgt. Treads destroyed. 01625_ S-10 Pest destroyed. 01628_ R-06 Scavenger collects Lgt. Assault Rifle. 01631_ R-06 Scavenger collects Lgt. Ion Engine. 01631_ Critical hit (Burn: +37). 01632_ R-06 Scavenger collects Flight Unit. 01635_ R-06 Scavenger collects Lgt. Ion Engine. 01636_ R-06 Scavenger collects Flight Unit. 01639_ U-05 Engineer builds a Door. 01640_ R-06 Scavenger collects Lgt. Assault Rifle. 01643_ M-13 Machinist repairs Y-45 Defender. 01656_ Y-45 Defender destroyed. 01657_ R-06 Scavenger collects Beam Rifle. Map ----- +----------------------------------------------------+ | ????????????????????????????????????????????#! | | ????????????????????????????????????????????#! | | ????????????????????????????????????????????##! | | ?????????????????????????????????????????????#### | | ????????????????????????????????????????????????# | | ???????????????????????????????????????########## | | ???????????????????????????????????????# """ # | | ???????????????????????????????????????# "Y" # | | ???????????????????????????????????????# # | | ???????????????????????????????????????# # | | ???????????????????????????????????????# + | | ???????????????????????????????????????# """ # | | ???????????????????????????????????????# """ # | | ???????????? ??????????????????????????# """ !# | | ???????????? ?????????????????????????# [[ *# | | ????????????? ????????????????????????####+##### | | ??????????????# ??????????????????????????# #???# | | ???????????????# ????????????????????????# #???# | | ???????????????# ?????###########???????# #???# | | ???????????????# ????# ! #######?# #???# | | ???????????????# ???# # ### ##### | | ???????????????# ### # # | | ???????????????# # # """ # | | ???????????????# + # """ + % | | ???????????????# # % % # """[# % | | ???????????????# #@% = r # # | | ???????????????# ?# =%!a # # | | ???????????????# ?########+########%% | | ??????????????+ ###?????????# | | ??????????????## ?????????????# | | ???????????????# ??????????????# | | ???????????????#???????????????# | | ???????????????????????????????# ###########% | | ???????????????????????????????# #?????????# | | ???????????????????????????????+ /?????????# | | ???????????????????????????????# #### ????????# | | ???????????????????????????????# #???#????????# | | ???????????????????????????????+ ?????????????# | | ???????????????????????????????# ?????????????# | | ???????????????????????????????# ?????????????# ^^ | | ??????????????????????????????? ?????????????# | | ??????????????????????????????? ?????????????# | | ??????????????????????????????? ?????????????# | | ??????????????????????????????? ?????????????# | | ?????????????????????????????? ?????????????# | | ???????????????????????????????#??????????????# | | ??????????????????????????????????????????????# | | ?????????????????????????????????????????????? | | ?????????????????????????????????????????????? ! | | ?????????????????????????????????????????????? | +----------------------------------------------------+ Best States ------------- Heat Dissipation 28 Energy Generation 10 Energy Capacity 250 Matter Stores 300 Matter Capacity 300 Sight Range 18 Robot Scan Range 14 Terrain Scan Range 16 Terrain Scan Density 10 Evasion (%) 40 Recoil Reduction 2 Offensive Hacking 10 Item Schematics ----------------- None Robot Schematics ------------------ None Fabricated ------------ Nothing Alien Tech Used ----------------- None Achievements -------------- None Challenges ------------ None Game ------ Seed ScatterSpreadReactor Manual? 0 Play Time 00:13:55 Cumulative 52.1 hours Start 2024.04.27 @ 16:58:41 End 2024.04.27 @ 17:08:56 Sessions 1 Manual Loads 0 Difficulty Rogue Special Mode None Game No. 84 Rogue 68 Adventurer 16 Explorer 0 Win Type - Total 0 Types 0/0/0/0/0/0/0/0/0 Lore% 17 Gallery% 35 Achievement% 26 Wizard Run 0 Options --------- Layout 1 ASCII 0 Keyboard 0 Movement Mouse Keybinds 0 Fullscreen 2 Font 24/Smallcaps Map View 50x35 Zoom Use 0% Tactical HUD 1 Map Filters NONE Filters NONE Steam 1 RUN: 52b0985d-d764-479c-a37d-bdf9f96fca1c